bitfinex-derivatives/quotes_SOLF0:USTF0_20251201
["timestamp","ask_amount","ask_price","bid_price","bid_amount"]
[1764620132302,0.05704516,124.61,124.54,112.4131]
[1764620132498,0.05704516,124.61,124.55,69.52]
[1764620132704,7.28014516,124.61,124.56,7.2253]
[1764620132906,0.05704516,124.61,124.52,112.4329]
[1764620133105,0.05112965,124.58,124.51,181.9403]
[1764620133598,7.27602965,124.58,124.53,7.2271]
[1764620134215,0.05112965,124.58,124.51,69.5]
[1764620134910,0.05112965,124.58,124.53,7.2276]
[1764620135808,0.05112965,124.58,124.51,76.7286]
[1764620136514,119.94752497,124.58,124.46,112.4879]
[1764620136812,0.05419832,124.53,124.47,182.0025]
[1764620137514,0.05419832,124.53,124.49,7.2299]
[1764620137906,0.05419832,124.53,124.47,182.0025]
[1764620138213,0.05419832,124.53,124.47,69.52]
[1764620138416,0.05419832,124.53,124.48,112.4751]
[1764620138614,0.05419832,124.53,124.51,7.2287]
[1764620139312,0.05419832,124.53,124.48,7.23]
[1764620139708,0.05419832,124.53,124.45,182.0187]
[1764620139909,7.50809532,124.55,124.45,182.0187]
[1764620139910,0.0552889,124.5,124.48,7.2303]
[1764620140109,0.05179625,124.5,124.48,7.2303]
[1764620141205,9.38879016,124.56,124.51,7.2285]
[1764620141411,9.3840911,124.58,124.51,7.2285]
[1764620141611,6.05896126,124.58,124.51,7.2285]
[1764620141818,7.2255,124.57,124.51,7.2285]
[1764620142019,7.2255,124.57,124.49,69.52]
[1764620142020,7.2255,124.57,124.52,7.2279]
[1764620142219,0.05872465,124.56,124.53,0.05179625]
[1764620143215,0.05872465,124.56,124.53,7.27909625]
[1764620146713,0.05872465,124.56,124.54,7.227]
[1764620147313,0.05872465,124.56,124.53,0.05179625]
[1764620147314,6.05896126,124.59,124.53,182.02209625]
[1764620147518,9.3917832,124.61,124.54,112.4179]
[1764620148025,9.3917832,124.6,124.54,112.4179]
[1764620148220,6.05896126,124.61,124.57,7.2253]
[1764620148423,9.44783767,124.6,124.58,0.06068144]
[1764620148629,0.05347387,124.6,124.58,0.06068144]
[1764620148821,9.41832527,124.59,124.58,0.06068144]
[1764620149723,9.41832527,124.59,124.55,7.2261]
[1764620149923,7.39749149,124.61,124.52,69.54]
[1764620150124,9.42368261,124.6,124.52,69.54]
[1764620150323,16.64798261,124.59,124.54,7.227]
[1764620150523,9.42368261,124.58,124.54,7.227]
[1764620150725,3.39512242,124.57,124.55,0.04983946]
[1764620151021,0.05812046,124.57,124.55,0.04983946]
[1764620151921,0.05812046,124.57,124.55,7.27623946]
[1764620154029,9.4479344,124.6,124.56,69.52]
[1764620154216,9.45043345,124.59,124.56,69.52]
[1764620154416,14.61999149,124.62,124.56,69.52]
[1764620154614,9.45466035,124.61,124.56,69.52]
[1764620154821,9.51041941,124.6,124.57,0.051567]
[1764620155026,9.45466035,124.59,124.57,0.051567]
[1764620155229,9.45466035,124.58,124.57,0.051567]
[1764620156332,0.05575906,124.6,124.57,0.051567]
[1764620156824,0.05575906,124.6,124.57,112.443467]
[1764620158531,0.05575906,124.6,124.57,0.051567]
[1764620160230,0.05575906,124.6,124.57,112.443767]
[1764620160625,0.05575906,124.6,124.57,0.051567]
[1764620161025,9.47807435,124.59,124.57,0.051567]
[1764620161226,0.05575906,124.6,124.57,0.051567]
[1764620162234,0.05575906,124.6,124.59,7.2242]
[1764620162531,5.01333757,124.6,124.57,0.051567]
[1764620162837,9.48573891,124.59,124.57,0.051567]
[1764620163139,9.48573891,124.58,124.57,0.051567]
[1764620164935,11.08573891,124.58,124.53,76.7272]
[1764620165135,9.48573891,124.57,124.53,76.7272]
[1764620165333,9.48573891,124.56,124.53,76.7272]
[1764620165530,91.39749149,124.59,124.53,76.7272]
[1764620165739,9.49667839,124.58,124.53,76.7272]
[1764620166036,9.5567694,124.57,124.54,0.05639292]
[1764620166230,9.49667839,124.56,124.54,0.05639292]
[1764620166425,9.49667839,124.55,124.54,0.05639292]
[1764620166631,9.49667839,124.55,124.46,112.4861]
[1764620166937,9.49667839,124.54,124.46,181.9861]
[1764620167240,9.49667839,124.53,124.46,181.9861]
[1764620167423,7.39749149,124.56,124.46,181.9861]
[1764620167623,0.05685305,124.52,124.46,181.9861]
[1764620168030,0.05685305,124.52,124.48,112.4744]
[1764620169433,0.05685305,124.52,124.5,7.2291]
[1764620169830,0.05685305,124.52,124.47,112.4834]
[1764620170031,0.05685305,124.52,124.48,7.2302]
[1764620170231,9.55773044,124.52,124.48,7.2302]
[1764620170430,0.05685305,124.52,124.46,181.9861]
[1764620170830,9.55773044,124.52,124.46,181.9861]
[1764620171135,0.05685305,124.52,124.46,181.9861]
[1764620171539,0.05685305,124.52,124.48,112.474]
[1764620171831,0.05685305,124.52,124.49,112.4649]
[1764620172332,0.05685305,124.52,124.5,76.7493]
[1764620175644,0.05685305,124.52,124.51,7.2288]
[1764620175838,9.49952419,124.58,124.51,112.4455]
[1764620176140,9.49952419,124.59,124.53,112.4278]
[1764620176329,9.49952419,124.58,124.55,112.4107]
[1764620176526,9.49952419,124.6,124.55,112.4107]
[1764620176730,69.52,124.61,124.58,7.2245]
[1764620176932,69.58110136,124.61,124.58,0.05401017]
[1764620177134,9.49978799,124.6,124.58,0.05401017]
[1764620177339,6.13576698,124.6,124.58,0.05401017]
[1764620177539,9.50075426,124.6,124.58,0.05401017]
[1764620178335,9.50205365,124.6,124.58,0.05401017]
[1764620179336,0.06110136,124.61,124.58,0.05401017]
[1764620180137,0.06110136,124.61,124.59,7.224]
[1764620180941,0.06110136,124.61,124.58,0.05401017]
[1764620182743,0.06110136,124.61,124.59,7.2242]
[1764620185144,0.06110136,124.61,124.58,0.05401017]
[1764620185539,6.19262749,124.61,124.58,0.05401017]
[1764620185738,0.06110136,124.61,124.58,0.05401017]
[1764620185934,6.19262749,124.61,124.58,0.05401017]
[1764620186440,9.55505584,124.61,124.58,0.05401017]
[1764620186845,6.19262749,124.61,124.58,0.05401017]
[1764620187045,0.06110136,124.61,124.58,0.05401017]
[1764620187246,9.5583735,124.61,124.58,0.05401017]
[1764620187944,9.49727214,124.6,124.58,0.05401017]
[1764620188239,6.13610265,124.59,124.58,0.05401017]
[1764620188443,9.4713511,124.6,124.58,0.05401017]
[1764620188644,6.13610265,124.59,124.58,0.05401017]
[1764620188845,16.69515262,124.6,124.58,0.05401017]
[1764620189045,6.13610265,124.59,124.58,0.05401017]
[1764620189544,9.47154234,124.59,124.58,0.05401017]
[1764620189843,16.69574234,124.59,124.58,0.05401017]
[1764620190048,7.2242,124.59,124.58,0.05401017]
[1764620190242,16.69574234,124.59,124.58,0.05401017]
[1764620190441,9.47154234,124.6,124.58,0.05401017]
[1764620190644,9.47154234,124.59,124.58,0.05401017]
[1764620190846,9.47154234,124.6,124.58,0.05401017]
[1764620191044,9.47154234,124.59,124.58,0.05401017]
[1764620191244,9.47154234,124.6,124.58,0.05401017]
[1764620191445,9.47154234,124.59,124.58,0.05401017]
[1764620191754,9.47269891,124.59,124.58,0.05401017]
[1764620193348,0.06110136,124.61,124.58,0.05401017]
[1764620194752,6.19624127,124.61,124.58,0.05401017]
[1764620195050,0.06110136,124.61,124.58,0.05401017]
[1764620195651,0.06110136,124.61,124.58,7.27861017]
[1764620196249,0.06110136,124.61,124.58,0.05401017]
[1764620196754,9.53127195,124.61,124.58,0.05401017]
[1764620196946,0.06110136,124.61,124.58,0.05401017]
[1764620197351,6.19604531,124.61,124.58,0.05401017]
[1764620197651,0.06110136,124.61,124.58,0.05401017]
[1764620197850,6.19604531,124.61,124.58,0.05401017]
[1764620198052,0.06110136,124.61,124.58,0.05401017]
[1764620198252,6.19604531,124.61,124.58,0.05401017]
[1764620198453,7.28410136,124.61,124.58,0.05401017]
[1764620198646,3.396328,124.61,124.58,0.05401017]
[1764620198847,0.06110136,124.61,124.58,0.05401017]
[1764620199048,3.396328,124.61,124.58,0.05401017]
[1764620199247,0.06110136,124.61,124.58,0.05401017]
[1764620199442,9.53167567,124.61,124.58,0.05401017]
[1764620200256,0.06110136,124.61,124.58,0.05401017]
[1764620200556,9.53124861,124.61,124.58,0.05401017]
[1764620200758,0.06110136,124.61,124.58,0.05401017]
[1764620200954,9.53124861,124.61,124.58,0.05401017]
[1764620201154,0.06110136,124.61,124.58,0.05401017]
[1764620201357,6.19560554,124.61,124.58,0.05401017]
[1764620201550,6.19560554,124.61,124.58,7.27861017]
[1764620201751,0.06110136,124.61,124.58,0.05401017]
[1764620203457,0.06110136,124.61,124.59,7.2241]
[1764620207856,0.06110136,124.61,124.6,7.2236]
[1764620209667,0.06110136,124.61,124.59,7.2241]
[1764620210065,0.06110136,124.61,124.58,69.51401017]
[1764620210265,0.06110136,124.61,124.6,7.2236]
[1764620212771,7.2201,124.66,124.59,112.3757]
[1764620213164,13.35464667,124.66,124.59,112.3757]
[1764620213465,13.35508609,124.66,124.59,112.3757]
[1764620213666,0.05947168,124.64,124.61,0.05264413]
[1764620213862,7.2221,124.63,124.61,0.05264413]
[1764620214056,6.13498609,124.63,124.61,0.05264413]
[1764620215161,3.39469832,124.64,124.61,0.05264413]
[1764620215366,112.3499,124.62,124.53,46.32]
[1764620215562,9.45420238,124.61,124.53,46.32]
[1764620215763,9.45420238,124.6,124.53,46.32]
[1764620216063,7.2247,124.58,124.53,53.5476]
[1764620216369,0.05890422,124.57,124.54,0.05142443]
[1764620217969,0.05890422,124.57,124.54,7.27842443]
[1764620218569,0.05890422,124.57,124.54,0.05142443]
[1764620219358,6.15477283,124.56,124.54,0.05142443]
[1764620219667,7.28450422,124.57,124.54,0.05142443]
[1764620219668,0.05890422,124.57,124.54,0.05142443]
[1764620219873,9.47302281,124.56,124.54,0.05142443]
[1764620220073,0.05890422,124.57,124.54,0.05142443]
[1764620220267,9.4756356,124.56,124.54,0.05142443]
[1764620220467,0.05890422,124.57,124.54,0.05142443]
[1764620220468,6.15745453,124.55,124.54,0.05142443]
[1764620220662,9.47682519,124.55,124.5,7.2292]
[1764620220973,9.47731358,124.54,124.49,69.44]
[1764620221277,7.2269,124.55,124.49,69.44]
[1764620221461,6.15901826,124.54,124.49,69.44]
[1764620221660,0.06080388,124.53,124.49,69.44]
[1764620223073,7.28860388,124.53,124.48,7.23]
[1764620223277,7.28860388,124.53,124.46,7.2312]
[1764620223468,0.05769782,124.51,124.46,7.2312]
[1764620225280,0.05769782,124.51,124.47,7.2307]
[1764620226474,0.05769782,124.51,124.48,7.2304]
[1764620227784,0.05769782,124.51,124.49,7.2297]
[1764620229091,16.6860599,124.58,124.52,7.2279]
[1764620229293,13.37094442,124.58,124.52,7.2279]
[1764620229485,16.6860599,124.58,124.52,7.2279]
[1764620229685,7.2259,124.56,124.48,112.4724]
[1764620229881,13.37184442,124.56,124.51,0.05828134]
[1764620230081,0.06137348,124.53,124.51,0.05828134]
[1764620233794,0.06137348,124.53,124.51,7.28698134]
[1764620236200,0.06137348,124.53,124.51,0.05828134]
[1764620238795,7.58568702,124.53,124.42,14.467]
[1764620238991,16.96841985,124.53,124.43,181.9923]
[1764620239593,16.96841985,124.53,124.44,112.5113]
[1764620239594,7.2285,124.52,124.44,112.5113]
[1764620239790,0.05296753,124.49,124.44,112.5113]
[1764620240795,0.05296753,124.49,124.47,7.231]
[1764620241299,0.05296753,124.49,124.42,112.5254]
[1764620242292,7.28296753,124.49,124.45,7.2318]
[1764620245398,7.2308,124.48,124.41,112.5387]
[1764620245603,0.0612312,124.46,124.41,112.5387]
[1764620246306,0.0612312,124.46,124.43,7.2332]
[1764620246707,0.0612312,124.46,124.42,112.5291]
[1764620248306,0.0612312,124.46,124.44,7.2326]
[1764620249402,0.0612312,124.46,124.43,112.5176]
[1764620249605,156.58008495,124.53,124.44,115.60918495]
[1764620250108,72.58008495,124.53,124.46,112.4923]
[1764620250404,69.48,124.53,124.46,181.9723]
[1764620250808,0.05938991,124.51,124.48,0.06166441]
[1764620251011,0.05938991,124.51,124.49,7.2298]
[1764620252514,0.05938991,124.51,124.5,7.2294]
[1764620254316,0.05938991,124.51,124.48,7.29166441]
[1764620254518,0.05938991,124.51,124.48,0.06166441]
[1764620255108,0.05938991,124.51,124.49,7.2299]
[1764620255509,6.10759714,124.55,124.5,181.935]
[1764620255706,6.10759714,124.57,124.5,181.935]
[1764620255910,9.40242224,124.58,124.5,181.935]
[1764620256114,6.10759714,124.57,124.53,7.2275]
[1764620256510,0.055432,124.56,124.54,0.06063182]
[1764620257612,6.10759714,124.55,124.54,0.06063182]
[1764620258720,0.055432,124.56,124.55,7.2265]
[1764620259911,9.44513152,124.6,124.57,7.2252]
[1764620260113,3.31123046,124.61,124.57,7.2252]
[1764620260310,6.13842558,124.6,124.57,7.2252]
[1764620260509,3.31256269,124.62,124.57,7.2252]
[1764620260814,9.4485236,124.61,124.57,7.2252]
[1764620261013,6.19695755,124.6,124.58,0.05226745]
[1764620261217,0.06099664,124.6,124.58,0.05226745]
[1764620262313,3.37310462,124.6,124.58,0.05226745]
[1764620262513,0.06099664,124.6,124.58,0.05226745]
[1764620262723,6.1345623,124.59,124.58,0.05226745]
[1764620262912,9.44646734,124.59,124.58,0.05226745]
[1764620263216,9.44646734,124.59,124.53,76.6871]
[1764620263407,9.44646734,124.58,124.53,76.6871]
[1764620263608,9.44646734,124.57,124.53,76.6871]
[1764620263816,3.31190504,124.59,124.53,76.6871]
[1764620264011,0.0564795,124.57,124.55,0.05919153]
[1764620266223,6.17169166,124.57,124.55,0.05919153]
[1764620266521,0.0564795,124.57,124.55,0.05919153]
[1764620266725,6.17169166,124.57,124.55,0.05919153]
[1764620266910,0.0564795,124.57,124.55,0.05919153]
[1764620267114,6.17169166,124.57,124.55,0.05919153]
[1764620267312,0.0564795,124.57,124.55,0.05919153]
[1764620267517,6.17169166,124.57,124.55,0.05919153]
[1764620268125,0.0564795,124.57,124.55,0.05919153]
[1764620271420,0.0564795,124.57,124.55,7.28549153]
[1764620271621,0.0564795,124.57,124.55,0.05919153]
[1764620272129,91.2259,124.56,124.55,0.05919153]
[1764620272321,100.43416728,124.56,124.55,0.05919153]
[1764620272627,103.74647138,124.56,124.55,0.05919153]
[1764620272926,93.42454073,124.56,124.55,0.05919153]
[1764620273123,84.0,124.56,124.55,0.05919153]
[1764620273719,3.15251015,124.57,124.55,0.05919153]
[1764620274123,6.46481425,124.57,124.55,0.05919153]
[1764620274320,13.69011425,124.57,124.55,0.05919153]
[1764620274514,115.54971015,124.57,124.46,112.4892]
[1764620274727,3.09603065,124.54,124.46,112.4892]
[1764620274921,10.32363065,124.54,124.46,112.4892]
[1764620275323,3.09603065,124.54,124.49,7.2299]
[1764620275627,0.05791532,124.53,124.5,0.05836848]
[1764620275927,0.05791532,124.53,124.5,7.28756848]
[1764620276627,0.05791532,124.53,124.5,0.05836848]
[1764620277315,0.05791532,124.53,124.5,7.28756848]
[1764620277720,0.05791532,124.53,124.5,0.05836848]
[1764620278629,0.05791532,124.53,124.5,69.49836848]
[1764620278829,0.05791532,124.53,124.51,7.2288]
[1764620280818,0.05791532,124.53,124.5,0.05836848]
[1764620282329,0.05791532,124.53,124.51,7.2285]
[1764620282835,0.05791532,124.53,124.5,0.05836848]
[1764620284333,0.05791532,124.53,124.51,7.2287]
[1764620284733,336.8998,124.68,124.54,7.227]
[1764620284734,7.2241,124.6,124.54,7.227]
[1764620284934,3.37854991,124.59,124.54,7.227]
[1764620285626,3.37854991,124.59,124.55,0.06082574]
[1764620285827,0.05959937,124.58,124.55,0.06082574]
[1764620288535,0.05959937,124.58,124.57,7.2253]
[1764620288937,0.05959937,124.58,124.55,7.28672574]
[1764620289140,0.05959937,124.58,124.55,0.06082574]
[1764620290042,0.05959937,124.58,124.56,7.2259]
[1764620290438,0.05959937,124.58,124.55,0.06082574]
[1764620292540,3.43814928,124.58,124.55,0.06082574]
[1764620292837,0.05959937,124.58,124.55,0.06082574]
[1764620293343,3.38755461,124.57,124.55,0.06082574]
[1764620293547,6.12757401,124.57,124.55,0.06082574]
[1764620293844,6.12739597,124.57,124.55,0.06082574]
[1764620294245,3.39043915,124.56,124.55,0.06082574]
[1764620294543,9.51783512,124.56,124.55,0.06082574]
[1764620295242,16.74373512,124.56,124.55,0.06082574]
[1764620295637,9.51783512,124.56,124.47,69.42]
[1764620295844,9.51783512,124.55,124.47,69.42]
[1764620296141,3.39043915,124.54,124.47,69.42]
[1764620296337,119.89042824,124.57,124.47,69.42]
[1764620296539,121.94700529,124.56,124.47,76.6506]
[1764620296734,0.05052661,124.53,124.5,0.06032733]
[1764620297243,3.39234269,124.52,124.5,0.06032733]
[1764620297443,0.05052661,124.53,124.5,0.06032733]
[1764620297638,3.39269688,124.52,124.5,0.06032733]
[1764620297840,0.05052661,124.53,124.5,0.06032733]
[1764620298039,3.39269721,124.52,124.5,0.06032733]
[1764620298243,0.05052661,124.53,124.5,0.06032733]
[1764620298443,3.39271793,124.52,124.5,0.06032733]
[1764620298634,7.27832661,124.53,124.5,0.06032733]
[1764620298635,0.05052661,124.53,124.5,0.06032733]
[1764620298836,3.39271793,124.52,124.5,0.06032733]
[1764620299136,0.05052661,124.53,124.5,0.06032733]
[1764620299332,3.39271793,124.52,124.5,0.06032733]
[1764620299538,0.05052661,124.53,124.5,0.06032733]
[1764620299741,3.39273624,124.52,124.5,0.06032733]
[1764620299942,0.05052661,124.53,124.5,0.06032733]
[1764620301348,0.05052661,124.53,124.51,7.2287]
[1764620304748,0.05052661,124.53,124.52,76.6482]
[1764620312751,6.13165562,124.61,124.57,7.2251]
[1764620312953,9.51868927,124.6,124.57,7.2251]
[1764620313253,7.2225,124.62,124.56,69.4]
[1764620313453,9.51704571,124.61,124.56,69.4]
[1764620313753,9.57777771,124.6,124.57,0.05406073]
[1764620313953,0.060732,124.6,124.57,0.05406073]
[1764620315450,6.18963232,124.6,124.57,7.27926073]
[1764620315653,0.060732,124.6,124.57,7.27926073]
[1764620315854,0.060732,124.6,124.57,0.05406073]
[1764620316156,6.18963232,124.6,124.58,7.2247]
[1764620316456,0.060732,124.6,124.58,7.2247]
[1764620316847,6.18963232,124.6,124.57,0.05406073]
[1764620317052,0.060732,124.6,124.57,0.05406073]
[1764620317252,0.060732,124.6,124.57,7.27936073]
[1764620317546,6.18963232,124.6,124.57,7.27936073]
[1764620317752,0.060732,124.6,124.57,7.27936073]
[1764620319156,0.060732,124.6,124.58,7.2247]
[1764620319363,13.47815489,124.65,124.57,112.44556073]
[1764620319364,9.51098367,124.63,124.57,112.44556073]
[1764620319653,3.38346154,124.64,124.59,112.3762]
[1764620319956,6.12663658,124.67,124.6,69.38]
[1764620320159,9.50993229,124.66,124.6,69.38]
[1764620320364,0.05760509,124.64,124.62,0.05164352]
[1764620323162,3.43760369,124.64,124.62,0.05164352]
[1764620323857,9.55541483,124.64,124.58,7.2246]
[1764620324057,9.49721607,124.63,124.58,7.1246]
[1764620324258,6.11781114,124.65,124.55,53.0846]
[1764620324460,7.2232,124.61,124.55,53.0846]
[1764620324857,0.06065184,124.59,124.57,0.05891243]
[1764620328465,7.28485184,124.59,124.57,0.05891243]
[1764620330959,0.06065184,124.59,124.57,0.05891243]
[1764620331566,7.28505184,124.59,124.57,0.05891243]
[1764620331953,0.06065184,124.59,124.57,0.05891243]
[1764620333966,0.06065184,124.59,124.58,7.2247]
[1764620336075,0.06065184,124.59,124.57,0.05891243]
[1764620337370,0.06065184,124.59,124.57,7.28421243]
[1764620337571,0.06065184,124.59,124.57,0.05891243]
[1764620338672,7.2247,124.58,124.57,0.05891243]
[1764620340276,7.2254,124.57,124.5,112.4529]
[1764620340581,10.61829047,124.57,124.49,181.8244]
[1764620340975,7.2254,124.57,124.49,181.8244]
[1764620341277,0.05410799,124.54,124.52,0.05462241]
[1764620343478,7.28140799,124.54,124.52,0.05462241]
[1764620343672,13.40230298,124.54,124.52,0.05462241]
[1764620343880,7.28140799,124.54,124.52,0.05462241]
[1764620345374,0.05410799,124.54,124.52,0.05462241]
[1764620350183,0.05410799,124.54,124.52,7.28282241]
[1764620352282,0.05410799,124.54,124.52,0.05462241]
[1764620352685,0.05410799,124.54,124.52,7.28282241]
[1764620355293,0.05410799,124.54,124.52,0.05462241]
[1764620363686,3.0958094,124.53,124.52,0.05462241]
[1764620365696,12.58734859,124.53,124.52,0.05462241]
[1764620365897,19.81494859,124.53,124.52,0.05462241]
[1764620366089,12.58734859,124.53,124.47,7.2307]
[1764620366294,3.0958094,124.5,124.47,7.2307]
[1764620366989,3.0958094,124.5,124.47,7.25176629]
[1764620366990,3.15130483,124.5,124.47,7.25176629]
[1764620367201,0.05549543,124.5,124.48,7.23]
[1764620368100,126.8511,124.57,124.49,112.4604]
[1764620368101,9.49153919,124.55,124.49,112.4604]
[1764620368292,3.37270657,124.56,124.49,112.4604]
[1764620368596,3.0958094,124.57,124.49,112.4604]
[1764620368793,9.24164486,124.57,124.49,112.4604]
[1764620368997,0.05291548,124.54,124.52,0.06091871]
[1764620369694,9.5760755,124.54,124.52,0.06091871]
[1764620370399,3.0958094,124.53,124.52,0.06091871]
[1764620371500,3.37554655,124.53,124.52,0.06091871]
[1764620371794,3.14872488,124.54,124.52,0.06091871]
[1764620372591,0.05291548,124.54,124.52,0.06091871]
[1764620373698,9.52310821,124.58,124.52,0.06091871]
[1764620373893,9.52292647,124.6,124.54,112.4213]
[1764620374202,9.52179927,124.61,124.55,112.4113]
[1764620374401,6.14676939,124.61,124.55,112.4113]
[1764620374596,6.14676939,124.61,124.57,7.2253]
[1764620374801,0.05585321,124.6,124.58,0.05273492]
[1764620374997,9.52165565,124.65,124.58,112.43573492]
[1764620375193,3.37488626,124.64,124.6,7.2235]
[1764620375398,6.14248171,124.65,124.6,7.2235]
[1764620375598,6.14248171,124.65,124.57,3.0958094]
[1764620375798,6.14248171,124.65,124.56,112.399]
[1764620375799,12.61143016,124.64,124.56,72.4558094]
[1764620375998,3.37313905,124.63,124.56,72.4558094]
[1764620376200,3.0958094,124.64,124.56,72.4558094]
[1764620376400,0.05520822,124.61,124.59,0.05358883]
[1764620376598,0.05744478,124.61,124.59,0.05268134]
[1764620379602,0.05744478,124.61,124.59,7.27668134]
[1764620380311,9.51499422,124.66,124.6,7.2233]
[1764620380809,37.03499422,124.67,124.6,7.2233]
[1764620381203,0.05693804,124.65,124.62,0.05607636]
[1764620382606,10.90099854,124.71,124.64,112.3302]
[1764620382802,6.13235831,124.71,124.64,112.3302]
[1764620383008,10.58883962,124.73,124.67,7.2194]
[1764620383205,7.2165,124.73,124.67,7.2194]
[1764620383408,8.61232456,124.73,124.67,7.2194]
[1764620383712,0.05714312,124.71,124.69,0.05154842]
[1764620384011,0.05432928,124.71,124.69,0.05154842]
[1764620393824,0.05432928,124.71,124.69,7.26974842]
[1764620394524,7.2136,124.78,124.7,181.5368]
[1764620394717,3.33198073,124.8,124.7,69.26]
[1764620394922,1.39526492,124.79,124.7,69.26]
[1764620395424,1.39526492,124.79,124.72,7.2166]
[1764620395723,0.05659422,124.76,124.73,0.05829103]
[1764620396930,7.27099422,124.76,124.73,0.05829103]
[1764620397833,0.05659422,124.76,124.73,0.05829103]
[1764620400430,0.05659422,124.76,124.73,7.27429103]
[1764620403435,0.05659422,124.76,124.74,7.2154]
[1764620404827,0.05659422,124.76,124.73,0.05829103]
[1764620405533,84.0,124.75,124.65,112.3168]
[1764620405732,4.8201023,124.73,124.65,69.22]
[1764620406131,12.0370023,124.72,124.66,7.22]
[1764620406435,12.0370023,124.72,124.65,69.22]
[1764620406635,0.05187589,124.7,124.67,0.05178888]
[1764620407332,0.05187589,124.7,124.68,7.2188]
[1764620407732,7.2146,124.76,124.68,112.2932]
[1764620407928,9.35366969,124.79,124.69,112.2842]
[1764620408630,7.2142,124.77,124.71,7.2172]
[1764620408833,112.2658,124.72,124.61,112.3581]
[1764620409035,4.8201023,124.69,124.59,112.3696]
[1764620409931,0.05052433,124.65,124.63,0.05928673]
[1764620411326,7.27132433,124.65,124.63,0.05928673]
[1764620412126,0.05052433,124.65,124.63,0.05928673]
[1764620412937,0.05052433,124.65,124.58,69.22]
[1764620412938,3.37593334,124.65,124.58,69.22]
[1764620413133,0.05052433,124.65,124.58,69.22]
[1764620413333,0.05052433,124.65,124.49,1.39728172]
[1764620413334,7.2226,124.62,124.49,113.85948172]
[1764620413534,7.2226,124.62,124.51,69.24]
[1764620413736,0.05121894,124.58,124.55,0.05829049]
[1764620414134,9.45456889,124.58,124.48,69.24]
[1764620414330,7.2257,124.57,124.48,76.4703]
[1764620414534,10.56468001,124.57,124.48,69.24]
[1764620414729,7.2257,124.57,124.48,76.4703]
[1764620414939,10.56468001,124.57,124.48,76.4703]
[1764620415138,0.05696182,124.54,124.51,0.06018058]
[1764620418437,0.05696182,124.54,124.51,7.28868058]
[1764620418744,9.40789486,124.6,124.53,112.4299]
[1764620418945,9.40789486,124.61,124.53,112.4299]
[1764620419139,3.33898001,124.6,124.54,7.2267]
[1764620419340,13.45603561,124.58,124.47,112.4764]
[1764620419537,9.40789486,124.57,124.47,112.4764]
[1764620419744,0.05731404,124.54,124.51,0.06067801]
[1764620423345,0.05731404,124.54,124.51,7.28927801]
[1764620425546,0.05731404,124.54,124.51,0.06067801]
[1764620431446,0.05731404,124.54,124.51,112.50477801]
[1764620431645,0.05731404,124.54,124.52,69.3]
[1764620433447,0.05731404,124.54,124.52,78.1281]
[1764620433653,66.87397943,124.65,124.54,112.4132]
[1764620433853,7.222,124.63,124.55,7.2259]
[1764620434055,175.8646,124.65,124.55,7.2259]
[1764620434252,175.8646,124.65,124.54,112.4132]
[1764620434554,0.05611513,124.61,124.58,0.05958572]
[1764620438053,0.05611513,124.61,124.59,7.2241]
[1764620442562,7.2191,124.68,124.6,181.6468]
[1764620443456,7.2191,124.68,124.63,7.2218]
[1764620443660,0.05168261,124.65,124.63,7.27245341]
[1764620447165,0.05168261,124.65,124.64,7.2213]
[1764620448260,0.05168261,124.65,124.63,7.27245341]
[1764620449966,0.05168261,124.65,124.63,0.05065341]
[1764620451363,3.36441401,124.64,124.57,112.3919]
[1764620451672,9.4472515,124.63,124.56,181.6611]
[1764620451965,6.08283749,124.65,124.58,112.3839]
[1764620452166,9.44741819,124.64,124.58,112.3839]
[1764620452371,0.05794637,124.62,124.61,7.223]
[1764620452565,0.05916793,124.63,124.61,7.223]
[1764620453464,0.05916793,124.63,124.6,0.05564555]
[1764620455269,0.05916793,124.63,124.6,7.27914555]
[1764620457270,0.05916793,124.63,124.6,0.05564555]
[1764620458371,0.05916793,124.63,124.6,7.27864555]
[1764620458565,0.05916793,124.63,124.6,0.05564555]
[1764620458961,3.36616452,124.62,124.6,0.05564555]
[1764620459166,13.37613972,124.63,124.6,0.05564555]
[1764620460475,0.05916793,124.63,124.6,0.05564555]
[1764620461269,6.1549001,124.63,124.6,0.05564555]
[1764620461666,9.46500748,124.62,124.53,112.4301]
[1764620461872,9.46500748,124.62,124.49,112.4634]
[1764620461873,13.45603561,124.6,124.5,112.4576]
[1764620462080,9.46500748,124.59,124.5,112.4576]
[1764620462368,9.46500748,124.58,124.51,112.4464]
[1764620462571,9.46622993,124.59,124.51,112.4464]
[1764620462772,0.05763097,124.56,124.53,0.05886516]